fUST/lending_fUST_20251207
["ID","MTS","AMOUNT","RATE_DAILY","PERIOD"]
[396564968,1765052717124,-312.26497147,6.834e-05,2]
[396564969,1765052718437,355.52,6.6e-05,2]
[396564970,1765052718744,355.52,6.8e-05,2]
[396564971,1765052720355,-155.76528857,6.834e-05,2]
[396564972,1765052721750,-151.21737776,6.834e-05,2]
[396564973,1765052722184,-384.14193328,6.834e-05,2]
[396564974,1765052722669,384.14193328,6.766e-05,2]
[396564975,1765052728427,-259.56401228,6.9e-05,2]
[396564976,1765052731195,-95.95598772,6.9e-05,2]
[396564977,1765052731479,-73.66280013,6.903e-05,2]
[396564978,1765052735464,-154.09575476,6.903e-05,2]
[396564979,1765052736949,-287.3029353,6.903e-05,2]
[396564980,1765052738637,775.63101619,6.834e-05,2]
[396564981,1765052739286,-176.45544528,6.903e-05,2]
[396564982,1765052741427,-311.87263561,6.903e-05,2]
[396564983,1765052741455,-8.3892073,6.904e-05,2]
[396564984,1765052743572,-337.27672743,6.904e-05,2]
[396564985,1765052746420,5955.12687988,6.835e-05,2]
[396564986,1765052746511,-158.2235184,6.904e-05,2]
[396564987,1765052749382,-187.93737386,6.904e-05,2]
[396564988,1765052753211,-265.06333982,6.904e-05,2]
[396564989,1765052755706,3932.69826561,6.835e-05,2]
[396564990,1765052763607,112.18485451,6.834e-05,2]
[396564991,1765052763634,2820.43879311,6.834e-05,2]
[396564992,1765052764714,205.09,6.641e-05,2]
[396564993,1765052777641,492.14,6.6e-05,2]
[396564994,1765052778231,492.14,6.8e-05,2]
[396564995,1765052779221,300.0,6.833e-05,2]
[396564996,1765052787236,492.14,6.831e-05,2]
[396564997,1765052802111,492.14,6.831e-05,2]
[396564998,1765052810218,492.14,6.831e-05,2]
[396564999,1765052825205,600.0,6.832e-05,2]
[396565000,1765052832999,600.0,6.832e-05,2]
[396565001,1765052839566,372.03,6.6e-05,2]
[396565002,1765052839719,372.03,6.8e-05,2]
[396565003,1765052841509,-300.35265755,6.9e-05,2]
[396565004,1765052843880,209.48,6.693e-05,2]
[396565005,1765052846286,-71.67734245,6.9e-05,2]
[396565006,1765052846308,-108.36225013,6.901e-05,2]
[396565007,1765052848031,-300.0,6.901e-05,2]
[396565008,1765052849939,-34.11197771,6.901e-05,2]
[396565009,1765052849963,-142.58802229,6.901e-05,2]
[396565010,1765052855913,349.04972758,6.832e-05,2]
[396565011,1765052857280,372.21,6.612e-05,2]
[396565012,1765052866749,-49.04972758,6.901e-05,2]
[396565013,1765052866782,-300.0,6.901e-05,2]
[396565014,1765052867617,-300.0,6.902e-05,2]
[396565015,1765052871524,9130.37513845,6.833e-05,2]
[396565016,1765052878108,171.53540639,6.901e-05,2]
[396565017,1765052878132,1028.46459361,6.901e-05,2]
[396565018,1765052879882,1416.80800423,6.833e-05,2]
[396565019,1765052882263,300.0,6.901e-05,2]
[396565020,1765052882821,-200.0,6.902e-05,2]
[396565021,1765052882842,-33.54778565,6.902e-05,2]
[396565022,1765052885403,-157.24285756,6.902e-05,2]
[396565023,1765052887292,-309.20935679,6.902e-05,2]
[396565024,1765052887331,-429.07044681,6.902e-05,2]
[396565025,1765052887369,-500.0,6.902e-05,2]
[396565026,1765052887414,-500.0,6.902e-05,2]
[396565027,1765052887454,-556.3986733,6.902e-05,2]
[396565028,1765052887492,-158.2235184,6.902e-05,2]
[396565029,1765052887533,-500.0,6.902e-05,2]
[396565030,1765052887576,-500.0,6.902e-05,2]
[396565031,1765052887615,-231.55955239,6.902e-05,2]
[396565032,1765052887655,-500.0,6.902e-05,2]
[396565033,1765052887700,-500.0,6.902e-05,2]
[396565034,1765052887741,-131.08690462,6.902e-05,2]
[396565035,1765052888029,-368.91309538,6.902e-05,2]
[396565036,1765052888067,-500.0,6.902e-05,2]
[396565037,1765052888105,-616.81159255,6.902e-05,2]
[396565038,1765052888149,-500.0,6.902e-05,2]
[396565039,1765052888189,-500.0,6.902e-05,2]
[396565040,1765052888229,-500.0,6.902e-05,2]
[396565041,1765052888271,-500.0,6.902e-05,2]
[396565042,1765052888311,-500.0,6.902e-05,2]
[396565043,1765052888354,-500.0,6.902e-05,2]
[396565044,1765052888398,-500.0,6.902e-05,2]
[396565045,1765052888647,-500.0,6.902e-05,2]
[396565046,1765052888691,-500.0,6.902e-05,2]
[396565047,1765052888736,-500.0,6.902e-05,2]
[396565048,1765052888780,-500.0,6.902e-05,2]
[396565049,1765052888822,-500.0,6.902e-05,2]
[396565050,1765052888865,-374.2917759,6.902e-05,2]
[396565051,1765052888916,-500.0,6.902e-05,2]
[396565052,1765052888960,-500.0,6.902e-05,2]
[396565053,1765052889002,-500.0,6.902e-05,2]
[396565054,1765052889046,-500.0,6.902e-05,2]
[396565055,1765052889716,-500.0,6.902e-05,2]
[396565056,1765052889751,-500.0,6.902e-05,2]
[396565057,1765052889787,-500.0,6.902e-05,2]
[396565058,1765052889822,-500.0,6.902e-05,2]
[396565059,1765052889858,-500.0,6.902e-05,2]
[396565060,1765052889894,-500.0,6.902e-05,2]
[396565061,1765052889929,-500.0,6.902e-05,2]
[396565062,1765052889965,-500.0,6.902e-05,2]
[396565063,1765052889999,-500.0,6.902e-05,2]
[396565064,1765052890034,-500.0,6.902e-05,2]
[396565065,1765052890134,-1225.95857109,6.902e-05,2]
[396565066,1765052890171,-1225.95857109,6.902e-05,2]
[396565067,1765052890207,-1225.95857109,6.902e-05,2]
[396565068,1765052890243,-1225.95857109,6.902e-05,2]
[396565069,1765052890411,-1225.95857109,6.902e-05,2]
[396565070,1765052890447,-1225.95857109,6.902e-05,2]
[396565071,1765052890483,-1225.95857109,6.902e-05,2]
[396565072,1765052890518,-1225.95857109,6.902e-05,2]
[396565073,1765052890684,-152.72,6.902e-05,2]
[396565074,1765052890725,-1073.23857109,6.902e-05,2]
[396565075,1765052890761,-1225.95857109,6.902e-05,2]
[396565076,1765052890795,-1225.95857109,6.902e-05,2]
[396565077,1765052890830,-1225.95857109,6.902e-05,2]
[396565078,1765052891090,-1225.95857109,6.902e-05,2]
[396565079,1765052891124,-1225.95857109,6.902e-05,2]
[396565080,1765052891160,-1225.95857109,6.902e-05,2]
[396565081,1765052891195,-1225.95857109,6.902e-05,2]
[396565082,1765052894519,-194.61801414,6.902e-05,2]
[396565083,1765052895731,-220.61788613,6.902e-05,2]
[396565084,1765052896011,-4220.75787584,6.833e-05,2]
[396565085,1765052896048,-747.7715775,6.902e-05,2]
[396565086,1765052896186,-62.95109332,6.902e-05,2]
[396565087,1765052896222,-1225.95857109,6.902e-05,2]
[396565088,1765052896256,-1225.95857109,6.902e-05,2]
[396565089,1765052896290,-1225.95857109,6.902e-05,2]
[396565090,1765052896325,-1225.95857109,6.902e-05,2]
[396565091,1765052896621,-1225.95857109,6.902e-05,2]
[396565092,1765052896659,-1225.95857109,6.902e-05,2]
[396565093,1765052896694,-1225.95857109,6.902e-05,2]
[396565094,1765052896731,-1225.95857109,6.902e-05,2]
[396565095,1765052896816,-1225.95857109,6.902e-05,2]
[396565096,1765052896854,-1225.95857109,6.902e-05,2]
[396565097,1765052896891,-1225.95857109,6.902e-05,2]
[396565098,1765052896928,-1225.95857109,6.902e-05,2]
[396565099,1765052897897,491.27,6.6e-05,2]
[396565100,1765052901744,-491.27,6.8e-05,2]
[396565101,1765052901768,-76.17539217,6.9e-05,2]
[396565102,1765052903314,-186.71752235,6.9e-05,2]
[396565103,1765052905733,-491.27,6.732e-05,2]
[396565104,1765052922167,-228.37708548,6.831e-05,2]
[396565105,1765052923910,209.82,6.697e-05,2]
[396565106,1765052927084,228.37708548,6.831e-05,2]
[396565107,1765052942647,228.37708548,6.831e-05,2]
[396565108,1765052942683,250.0,0.00013106,3]
[396565109,1765052942899,250.0,0.00013032,3]
[396565110,1765052950850,300.0,6.831e-05,2]
[396565111,1765052957503,-300.0,6.9e-05,2]
[396565112,1765052958761,348.71,6.6e-05,2]
[396565113,1765052959037,348.71,6.8e-05,2]
[396565114,1765052960051,348.71,6.9e-05,2]
[396565115,1765052965107,206.8461797,6.8e-05,2]
[396565116,1765052966003,8147.0338203,6.832e-05,2]
[396565117,1765052966028,4285.06679225,6.832e-05,2]
[396565118,1765052972887,-179.64573251,6.901e-05,2]
[396565119,1765052972910,-18.703818,6.901e-05,2]
[396565120,1765052973757,5714.94320775,6.832e-05,2]
[396565121,1765052973785,5510.08497923,6.832e-05,2]
[396565122,1765052977558,-481.296182,6.901e-05,2]
[396565123,1765052977588,-500.0,6.901e-05,2]
[396565124,1765052977623,-690.35625296,6.901e-05,2]
[396565125,1765052977653,-500.0,6.901e-05,2]
[396565126,1765052977684,-500.0,6.901e-05,2]
[396565127,1765052977717,-690.35625296,6.901e-05,2]
[396565128,1765052977752,-690.35625296,6.901e-05,2]
[396565129,1765052977783,-500.0,6.901e-05,2]
[396565130,1765052977811,-395.28011824,6.901e-05,2]
[396565131,1765052978391,-104.71988176,6.901e-05,2]
[396565132,1765052978425,-690.35625296,6.901e-05,2]
[396565133,1765052978455,-592.10552764,6.901e-05,2]
[396565134,1765052978486,-500.0,6.901e-05,2]
[396565135,1765052978519,-690.35625296,6.901e-05,2]
[396565136,1765052978548,-500.0,6.901e-05,2]
[396565137,1765052978584,-690.35625296,6.901e-05,2]
[396565138,1765052978613,-493.56898197,6.901e-05,2]
[396565139,1765052978651,-690.35625296,6.901e-05,2]
[396565140,1765052978823,-690.35625296,6.901e-05,2]
[396565141,1765052978858,-690.35625296,6.901e-05,2]
[396565142,1765052978893,-690.35625296,6.901e-05,2]
[396565143,1765052978928,-690.35625296,6.901e-05,2]
[396565144,1765052978962,-690.35625296,6.901e-05,2]
[396565145,1765052978997,-690.35625296,6.901e-05,2]
[396565146,1765052979031,-690.35625296,6.901e-05,2]
[396565147,1765052979119,-690.35625296,6.901e-05,2]
[396565148,1765052979155,-690.35625296,6.901e-05,2]
[396565149,1765052979189,-690.35625296,6.901e-05,2]
[396565150,1765052979224,-690.35625296,6.901e-05,2]
[396565151,1765052979257,-690.35625296,6.901e-05,2]
[396565152,1765052979292,-690.35625296,6.901e-05,2]
[396565153,1765052979326,-690.35625296,6.901e-05,2]
[396565154,1765052979413,-690.35625296,6.901e-05,2]
[396565155,1765052979448,-690.35625296,6.901e-05,2]
[396565156,1765052979483,-690.35625296,6.901e-05,2]
[396565157,1765052979519,-690.35625296,6.901e-05,2]
[396565158,1765052979555,-690.35625296,6.901e-05,2]
[396565159,1765052979591,-690.35625296,6.901e-05,2]
[396565160,1765052979625,-690.35625296,6.901e-05,2]
[396565161,1765052984602,-690.35625296,6.901e-05,2]
[396565162,1765052984641,-690.35625296,6.901e-05,2]
[396565163,1765052984677,-690.35625296,6.901e-05,2]
[396565164,1765052984712,-690.35625296,6.901e-05,2]
[396565165,1765052984747,-690.35625296,6.901e-05,2]
[396565166,1765052984782,-690.35625296,6.901e-05,2]
[396565167,1765052984820,-690.35625296,6.901e-05,2]
[396565168,1765052996904,5680.70596947,6.764e-05,2]
[396565169,1765053002830,-613.39432335,6.832e-05,2]
[396565170,1765053003725,221.26,6.685e-05,2]
[396565171,1765053006623,-214.86638172,6.832e-05,2]
[396565172,1765053008096,-292.39362416,6.832e-05,2]
[396565173,1765053012280,-382.31628849,6.832e-05,2]
[396565174,1765053014326,-161.57926918,6.832e-05,2]
[396565175,1765053016084,-424.663942,6.832e-05,2]
[396565176,1765053018565,4098.04403053,6.764e-05,2]
[396565177,1765053018590,127.11205204,6.764e-05,2]
[396565178,1765053019093,498.84,6.6e-05,2]
[396565179,1765053019373,498.84,6.8e-05,2]
[396565180,1765053020707,-152.46583277,6.832e-05,2]
[396565181,1765053023917,-158.24064033,6.832e-05,2]
[396565182,1765053026105,-279.72248607,6.832e-05,2]
[396565183,1765053027383,895.71797087,6.764e-05,2]
[396565184,1765053029855,-219.77156038,6.832e-05,2]
[396565185,1765053031334,-249.37986527,6.832e-05,2]
[396565238,1765053032953,-2531.91175575,6.832e-05,2]
[396565239,1765053032963,-209.0,6.832e-05,2]
[396565240,1765053032972,-2339.9809339,6.895e-05,2]
[396565241,1765053032982,-300.0,6.9e-05,2]
[396565242,1765053032991,-300.0,6.9e-05,2]
[396565243,1765053033001,-1200.0,6.9e-05,2]
[396565244,1765053033010,-498.84,6.9e-05,2]
[396565245,1765053033019,-209.40437684,6.902e-05,2]
[396565246,1765053033028,-500.0,6.902e-05,2]
[396565247,1765053033037,-500.0,6.902e-05,2]
[396565248,1765053033047,-2334.9729592,6.902e-05,2]
[396565249,1765053033056,-500.0,6.902e-05,2]
[396565250,1765053033066,-500.0,6.902e-05,2]
[396565251,1765053033075,-500.0,6.902e-05,2]
[396565252,1765053033084,-500.0,6.902e-05,2]
[396565253,1765053033094,-500.0,6.902e-05,2]
[396565254,1765053033103,-500.0,6.902e-05,2]
[396565255,1765053033112,-500.0,6.902e-05,2]
[396565256,1765053033122,-228.1223099,6.902e-05,2]
[396565257,1765053033131,-830.4224376,6.902e-05,2]
[396565258,1765053033141,-151.0,6.904e-05,2]
[396565259,1765053033151,-512.34007572,6.906e-05,2]
[396565260,1765053033163,-37589.07125706,6.906e-05,2]
[396565261,1765053033687,-1035.8268385,6.906e-05,2]
[396565550,1765053042459,-3e-08,6.831e-05,2]
[396565553,1765053042472,-1031.51259371,6.831e-05,2]
[396565554,1765053042481,-500.0,6.9e-05,2]
[396565557,1765053042491,-232.45616974,6.9e-05,2]
[396565558,1765053042500,-332.61877577,6.9e-05,2]
[396565560,1765053042510,-235.60170719,6.9e-05,2]
[396565562,1765053042520,-500.0,6.9e-05,2]
[396565564,1765053042531,-500.0,6.9e-05,2]
[396565567,1765053042541,-500.0,6.9e-05,2]
[396565569,1765053042550,-500.0,6.9e-05,2]
[396565571,1765053042559,-505.51351684,6.9e-05,2]
[396565573,1765053042568,-500.0,6.9e-05,2]
[396565575,1765053042577,-500.0,6.9e-05,2]
[396565577,1765053042587,-500.0,6.9e-05,2]
[396565579,1765053042596,-500.0,6.9e-05,2]
[396565581,1765053042605,-500.0,6.9e-05,2]
[396565583,1765053042614,-471.50113865,6.9e-05,2]
[396565929,1765053046289,-600.0,6.831e-05,2]
[396566056,1765053047702,-7467.09921127,6.831e-05,2]
[396566058,1765053047713,-6117.6303219,6.831e-05,2]
[396566060,1765053047723,-28.49886135,6.9e-05,2]
[396566062,1765053047732,-500.0,6.9e-05,2]
[396566064,1765053047742,-500.0,6.9e-05,2]
[396566066,1765053047750,-500.0,6.9e-05,2]
[396566068,1765053047760,-500.0,6.9e-05,2]
[396566069,1765053047770,-500.0,6.9e-05,2]
[396566071,1765053047779,-500.0,6.9e-05,2]
[396566073,1765053047789,-500.0,6.9e-05,2]
[396566075,1765053047798,-500.0,6.9e-05,2]
[396566077,1765053047808,-156.23067182,6.9e-05,2]
[396566079,1765053047816,-500.0,6.9e-05,2]
[396566081,1765053047825,-500.0,6.9e-05,2]
[396566082,1765053047834,-500.0,6.9e-05,2]
[396566084,1765053047844,-500.0,6.9e-05,2]
[396566086,1765053047853,-500.0,6.9e-05,2]
[396566088,1765053047862,-500.0,6.9e-05,2]
[396566090,1765053047871,-500.0,6.9e-05,2]
[396566092,1765053047881,-500.0,6.9e-05,2]
[396566094,1765053047890,-500.0,6.9e-05,2]
[396566096,1765053047899,-500.0,6.9e-05,2]
[396566098,1765053047908,-500.0,6.9e-05,2]
[396566100,1765053047917,-500.0,6.9e-05,2]
[396566102,1765053047926,-500.0,6.9e-05,2]
[396566104,1765053047935,-500.0,6.9e-05,2]
[396566106,1765053047944,-500.0,6.9e-05,2]
[396566108,1765053047954,-500.0,6.9e-05,2]
[396566132,1765053048172,-500.0,6.9e-05,2]
[396566135,1765053048189,-500.0,6.9e-05,2]
[396566137,1765053048198,-500.0,6.9e-05,2]
[396566139,1765053048208,-500.0,6.9e-05,2]
[396566141,1765053048218,-35422.36093846,6.906e-05,2]
[396566618,1765053056393,-474.05053641,6.837e-05,2]
[396566619,1765053058523,-476.56959832,6.837e-05,2]
[396566620,1765053060340,-152.03,6.837e-05,2]
[396566621,1765053078083,442.48,6.6e-05,2]
[396566622,1765053078366,442.48,6.8e-05,2]
[396566623,1765053086171,245.7,6.728e-05,2]
[396566626,1765053114655,206.8461797,6.8e-05,2]
[396566627,1765053137303,486.61,6.6e-05,2]
[396566628,1765053137930,486.61,6.8e-05,2]
[396566629,1765053167308,246.39,6.723e-05,2]
[396566630,1765053197557,459.78,6.6e-05,2]
[396566631,1765053197890,459.78,6.8e-05,2]
[396566634,1765053246949,247.07,6.733e-05,2]
[396566635,1765053261550,152.71,6.8e-05,2]
[396566636,1765053261581,497.76,6.6e-05,2]
[396566637,1765053261891,497.76,6.8e-05,2]
[396566638,1765053269254,333.96973815,6.8e-05,2]
[396566639,1765053289052,-333.96973815,6.869e-05,2]
[396566640,1765053289076,-90.03746295,6.9e-05,2]
[396566641,1765053291211,-394.04902969,6.9e-05,2]
[396566642,1765053291403,333.96973815,6.8e-05,2]
[396566643,1765053292759,-13.67350736,6.9e-05,2]
[396566644,1765053292791,-139.03649264,6.905e-05,2]
[396566645,1765053294303,-300.0,6.905e-05,2]
[396566646,1765053296986,-151.33,6.905e-05,2]
[396566647,1765053298631,-300.0,6.905e-05,2]
[396566648,1765053299150,455.85696932,6.836e-05,2]
[396566649,1765053301489,-196.80918333,6.905e-05,2]
[396566650,1765053303510,-6.82432403,6.905e-05,2]
[396566651,1765053303531,-220.46077197,6.905e-05,2]
[396566652,1765053306157,-79.53922803,6.905e-05,2]
[396566653,1765053306182,-150.54722123,6.905e-05,2]
[396566654,1765053307152,1113.65596567,6.836e-05,2]
[396566655,1765053309346,-149.45277877,6.905e-05,2]
[396566656,1765053309371,-13.38896924,6.905e-05,2]
[396566657,1765053312343,-152.86,6.905e-05,2]
[396566658,1765053314905,1786.61103076,6.836e-05,2]
[396566659,1765053319356,499.73,6.6e-05,2]
[396566660,1765053319734,499.73,6.8e-05,2]
[396566661,1765053323532,1269.8824766,6.836e-05,2]
[396566662,1765053326255,-192.83436738,6.9e-05,2]
[396566663,1765053331315,247.74,6.67e-05,2]
[396566664,1765053339281,247.74,6.67e-05,2]
[396566665,1765053348216,192.83436738,6.67e-05,2]
[396566666,1765053356886,247.74,6.67e-05,2]
[396566667,1765053365084,247.74,6.67e-05,2]
[396566668,1765053378635,513.77,6.6e-05,2]
[396566669,1765053380603,247.74,6.67e-05,2]
[396566670,1765053388498,247.74,6.67e-05,2]
[396566671,1765053403692,247.74,6.67e-05,2]
[396566672,1765053404742,-173.64931978,6.8e-05,2]
[396566673,1765053406205,-152.43,6.8e-05,2]
[396566674,1765053419598,173.64931978,6.663e-05,2]
[396566675,1765053420412,-254.72,6.73e-05,2]
[396566676,1765053420437,-7.56923855,6.732e-05,2]
[396566677,1765053427499,180.12144167,6.665e-05,2]
[396566678,1765053438191,504.88,6.6e-05,2]
[396566679,1765053439510,-152.38,6.732e-05,2]
[396566680,1765053440160,189.9403302,5.978e-05,2]
[396566681,1765053488923,277.74,6.682e-05,2]
[396566682,1765053497893,-27.74144167,6.732e-05,2]
[396566683,1765053497916,-312.8866128,6.766e-05,2]
[396566684,1765053498040,519.26,6.6e-05,2]
[396566685,1765053500078,-14.40373059,6.766e-05,2]
[396566686,1765053500102,-236.70043206,6.8e-05,2]
[396566687,1765053502782,-173.44542261,6.8e-05,2]
[396566688,1765053504015,-282.55956794,6.732e-05,2]
[396566689,1765053505736,-109.11414533,6.8e-05,2]
[396566690,1765053505763,-300.0,6.805e-05,2]
[396566691,1765053505785,-136.7581544,6.805e-05,2]
[396566692,1765053509012,-30.52112525,6.805e-05,2]
[396566693,1765053509036,-201.71712585,6.806e-05,2]
[396566694,1765053510568,-318.20252885,6.806e-05,2]
[396566695,1765053511478,198.50958526,6.738e-05,2]
[396566696,1765053519076,9236.38127886,6.738e-05,2]
[396566697,1765053519105,243.80526927,6.738e-05,2]
[396566698,1765053532196,-206.07956658,6.738e-05,2]
[396566699,1765053534000,-222.48358136,6.738e-05,2]
[396566700,1765053537072,-214.25074878,6.738e-05,2]
[396566701,1765053540161,-229.14080701,6.738e-05,2]
[396566702,1765053541598,-227.16857435,6.738e-05,2]
[396566703,1765053542649,1661.34431146,6.671e-05,2]
[396566704,1765053544181,-300.0,6.737e-05,2]
[396566705,1765053544274,-4269.57630923,6.738e-05,2]
[396566706,1765053545898,-190.81826586,6.738e-05,2]
[396566707,1765053548447,-432.49917161,6.738e-05,2]
[396566708,1765053551645,-326.64030813,6.738e-05,2]
[396566709,1765053553711,-184.26,6.738e-05,2]
[396566710,1765053555493,-152.85,6.738e-05,2]
[396566711,1765053557494,365.23515296,6.671e-05,2]
[396566712,1765053558508,-166.21,6.738e-05,2]
[396566713,1765053559649,427.41,6.6e-05,2]
[396566714,1765053560081,-152.72,6.738e-05,2]
[396566715,1765053564228,-239.64,6.738e-05,2]
[396566716,1765053565306,318.93,6.671e-05,2]
[396566717,1765053565804,-219.97751539,6.738e-05,2]
[396566718,1765053567402,-158.91,6.738e-05,2]
[396566719,1765053567959,278.09,6.686e-05,2]
[396566720,1765053569457,-210.19076145,6.738e-05,2]
[396566721,1765053573476,-162.20338691,6.738e-05,2]
[396566722,1765053575144,-195.52,6.738e-05,2]
[396566723,1765053576590,-261.13173414,6.738e-05,2]
[396566724,1765053580123,-151.08,6.738e-05,2]
[396566725,1765053582810,-5653.8395201,6.738e-05,2]
[396566726,1765053582844,-8240.77895059,6.738e-05,2]
[396566727,1765053582977,-284.45094438,6.738e-05,2]
[396566728,1765053587274,167.09106483,6.671e-05,2]
[396566729,1765053587888,-167.09106483,6.738e-05,2]
[396566730,1765053587911,-67.34965172,6.8e-05,2]
[396566731,1765053600219,-360.06034828,6.732e-05,2]
[396566732,1765053600247,-360.06034828,6.8e-05,2]
[396566733,1765053600277,-665.13990622,6.805e-05,2]
[396566734,1765053600307,-665.13990622,6.805e-05,2]
[396566735,1765053600336,-665.13990622,6.805e-05,2]
[396566736,1765053600365,-665.13990622,6.805e-05,2]
[396566737,1765053600394,-665.13990622,6.805e-05,2]
[396566738,1765053600421,-665.13990622,6.805e-05,2]
[396566739,1765053600451,-665.13990622,6.805e-05,2]
[396566740,1765053600480,-665.13990622,6.805e-05,2]
[396566741,1765053600508,-665.13990622,6.805e-05,2]
[396566742,1765053600536,-665.13990622,6.805e-05,2]
[396566743,1765053600563,-665.13990622,6.805e-05,2]
[396566744,1765053600592,-665.13990622,6.805e-05,2]
[396566745,1765053600620,-665.13990622,6.805e-05,2]
[396566746,1765053600648,-600.98113894,6.805e-05,2]
[396566747,1765053601194,-64.15876728,6.805e-05,2]
[396566748,1765053615283,-2009.0,6.736e-05,2]
[396566749,1765053615309,-300.0,6.804e-05,2]
[396566750,1765053615334,-300.0,6.804e-05,2]
[396566751,1765053615359,-209.0,6.804e-05,2]
[396566752,1765053615384,-1200.0,6.804e-05,2]
[396566753,1765053615416,-665.13990622,6.805e-05,2]
[396566754,1765053615447,-665.13990622,6.805e-05,2]
[396566755,1765053615477,-665.13990622,6.805e-05,2]
[396566756,1765053615508,-665.13990622,6.805e-05,2]
[396566757,1765053615537,-665.13990622,6.805e-05,2]
[396566758,1765053615567,-665.13990622,6.805e-05,2]
[396566759,1765053615596,-665.13990622,6.805e-05,2]
[396566760,1765053615626,-665.13990622,6.805e-05,2]
[396566761,1765053615657,-656.62159426,6.805e-05,2]
[396566762,1765053615921,-8.51831196,6.805e-05,2]
[396566763,1765053617825,-244.97,6.805e-05,2]
[396566764,1765053618121,556.41,6.6e-05,2]
[396566765,1765053621275,-157.80546858,6.737e-05,2]
[396566766,1765053621699,-988.22433276,6.737e-05,2]
[396566767,1765053634954,507.41357457,6.732e-05,2]
[396566768,1765053635906,-162.58,6.8e-05,2]
[396566769,1765053647884,274.55,6.685e-05,2]
[396566770,1765053648456,-345.9150314,6.732e-05,2]
[396566771,1765053679668,433.99,6.6e-05,2]
[396566772,1765053693361,-47.9149686,6.732e-05,2]
[396566773,1765053693384,-104.0550314,6.8e-05,2]
[396566774,1765053707906,-234.38064113,6.732e-05,2]
[396566775,1765053722849,-95.55432747,6.732e-05,2]
[396566776,1765053722871,-128.68567253,6.732e-05,2]
[396566777,1765053723561,-105.6949686,6.732e-05,2]
[396566778,1765053723589,-300.0,6.803e-05,2]
[396566779,1765053723629,-500.0,6.804e-05,2]
[396566780,1765053723663,-500.0,6.804e-05,2]
[396566781,1765053723697,-500.0,6.804e-05,2]
[396566782,1765053723732,-500.0,6.804e-05,2]
[396566783,1765053723763,-500.0,6.804e-05,2]
[396566784,1765053723795,-500.0,6.804e-05,2]
[396566785,1765053723826,-500.0,6.804e-05,2]
[396566786,1765053723858,-500.0,6.804e-05,2]
[396566787,1765053723891,-500.0,6.804e-05,2]
[396566788,1765053723921,-500.0,6.804e-05,2]
[396566789,1765053723951,-500.0,6.804e-05,2]
[396566790,1765053723984,-500.0,6.804e-05,2]
[396566791,1765053724015,-500.0,6.804e-05,2]
[396566792,1765053724044,-500.0,6.804e-05,2]
[396566793,1765053724072,-500.0,6.804e-05,2]
[396566794,1765053724100,-500.0,6.804e-05,2]
[396566795,1765053724130,-500.0,6.804e-05,2]
[396566796,1765053724159,-500.0,6.804e-05,2]
[396566797,1765053724186,-500.0,6.804e-05,2]
[396566798,1765053724807,-188.6100628,6.804e-05,2]
[396566799,1765053727582,275.14,6.685e-05,2]
[396566800,1765053728173,-202.67194739,6.804e-05,2]
[396566801,1765053734092,-807.63796497,6.736e-05,2]
[396566802,1765053739231,555.83,6.6e-05,2]
[396566803,1765053746093,448.0018777,6.732e-05,2]
[396566804,1765053746926,-191.67,6.8e-05,2]
[396566805,1765053754343,295.5318777,6.732e-05,2]
[396566806,1765053762778,364.16,6.732e-05,2]
[396566807,1765053770597,304.49377137,6.732e-05,2]
[396566808,1765053778626,205.84,6.732e-05,2]
[396566809,1765053780386,202.67194739,6.736e-05,2]
[396566810,1765053799271,451.83,6.6e-05,2]
[396566811,1765053808239,275.52,6.687e-05,2]
[396566812,1765053815557,235.43,6.732e-05,2]
[396566813,1765053845007,-332.94107617,6.801e-05,2]
[396566814,1765053845033,-300.0,6.802e-05,2]
[396566815,1765053845059,-296.06072671,6.803e-05,2]
[396566816,1765053845093,-500.0,6.803e-05,2]
[396566817,1765053845128,-500.0,6.803e-05,2]
[396566818,1765053845162,-500.0,6.803e-05,2]
[396566819,1765053845195,-500.0,6.803e-05,2]
[396566820,1765053845229,-500.0,6.803e-05,2]
[396566821,1765053845258,-500.0,6.803e-05,2]
[396566822,1765053845288,-500.0,6.803e-05,2]
[396566823,1765053845317,-500.0,6.803e-05,2]
[396566824,1765053845346,-500.0,6.803e-05,2]
[396566825,1765053845375,-500.0,6.803e-05,2]
[396566826,1765053845405,-500.0,6.803e-05,2]
[396566827,1765053845436,-500.0,6.803e-05,2]
[396566828,1765053845466,-500.0,6.803e-05,2]